bitfinex/quotes_BTCUSD_20251120
["timestamp","ask_amount","ask_price","bid_price","bid_amount"]
[1763669235379,0.323,86849.0,86838.0,0.001]
[1763669236137,0.11476708,86845.0,86833.0,0.0118]
[1763669236289,0.01807571,86847.0,86833.0,0.0118]
[1763669236488,0.01807571,86847.0,86838.0,0.001]
[1763669236693,0.11476708,86845.0,86838.0,0.001]
[1763669236952,0.323,86844.0,86838.0,0.001]
[1763669237811,0.323,86844.0,86815.0,0.0118]
[1763669238021,0.323,86844.0,86838.0,0.001]
[1763669238224,0.323,86844.0,86815.0,0.0118]
[1763669238460,0.323,86839.0,86815.0,0.0118]
[1763669239122,0.323,86829.0,86815.0,0.0118]
[1763669239612,0.323,86824.0,86814.0,0.00041744]
[1763669239982,0.323,86824.0,86815.0,0.0118]
[1763669240177,0.323,86824.0,86814.0,0.00041744]
[1763669240376,0.43776708,86824.0,86814.0,0.00041744]
[1763669240872,0.43776708,86824.0,86815.0,0.001]
[1763669241073,0.43776708,86824.0,86814.0,0.00041744]
[1763669242527,0.43776708,86824.0,86815.0,0.0118]
[1763669242787,0.2436,86844.0,86823.0,0.01618]
[1763669242990,0.35836708,86845.0,86823.0,0.01618]
[1763669243163,0.323,86844.0,86823.0,0.01618]
[1763669243337,0.323,86839.0,86823.0,0.01618]
[1763669243687,0.4664014,86840.0,86823.0,0.01618]
[1763669244049,0.323,86839.0,86823.0,0.01618]
[1763669244259,0.323,86839.0,86824.0,0.03640106]
[1763669244459,0.323,86839.0,86825.0,0.02258]
[1763669244869,0.4664014,86850.0,86825.0,0.02258]
[1763669244870,0.4664014,86850.0,86838.0,0.0118]
[1763669245359,0.4664014,86850.0,86833.0,0.0118]
[1763669245723,0.4664014,86850.0,86817.0,0.01382217]
[1763669245724,0.323,86842.0,86817.0,0.01382217]
[1763669245944,0.323,86842.0,86819.0,0.02258]
[1763669246255,0.323,86842.0,86820.0,0.12858878]
[1763669246437,0.4664014,86850.0,86820.0,0.12858878]
[1763669246599,0.4664014,86850.0,86821.0,0.02258]
[1763669246600,0.01807648,86837.0,86821.0,0.02258]
[1763669246783,0.01807648,86837.0,86825.0,0.001]
[1763669246983,0.01807648,86837.0,86836.0,0.0118]
[1763669247243,0.01807648,86837.0,86822.0,0.01629688]
[1763669247384,0.01807648,86837.0,86820.0,0.02258]
[1763669247570,0.01807648,86837.0,86821.0,0.11476708]
[1763669247988,0.01807648,86837.0,86825.0,0.001]
[1763669248345,0.01807648,86837.0,86815.0,0.03438]
[1763669248553,0.01807648,86837.0,86820.0,0.001]
[1763669249350,0.4664014,86830.0,86820.0,0.001]
[1763669249748,0.4664014,86830.0,86815.0,0.0118]
[1763669249917,0.4664014,86830.0,86825.0,0.001]
[1763669250115,0.323,86834.0,86825.0,0.001]
[1763669250350,0.323,86834.0,86808.0,0.01189]
[1763669250549,0.4664014,86830.0,86820.0,0.001]
[1763669250751,0.323,86834.0,86820.0,0.001]
[1763669250965,0.323,86834.0,86814.0,0.03681306]
[1763669251170,0.4664014,86850.0,86815.0,0.13828708]
[1763669251171,0.323,86849.0,86815.0,0.13828708]
[1763669251369,0.001,86834.0,86817.0,0.05210249]
[1763669251610,0.001,86834.0,86818.0,0.0470731]
[1763669251822,0.001,86834.0,86819.0,0.02352]
[1763669252260,0.001,86834.0,86833.0,0.01545]
[1763669252622,0.001,86834.0,86833.0,0.03908]
[1763669253038,0.323,86857.0,86833.0,0.03908]
[1763669253221,0.01807538,86834.0,86833.0,0.01545]
[1763669253439,0.4664014,86850.0,86833.0,0.001]
[1763669253790,0.0107623,86849.0,86833.0,0.04116]
[1763669253997,0.01807549,86871.0,86833.0,0.04116]
[1763669254198,0.03229377,86857.0,86848.0,0.01171]
[1763669254373,0.03229377,86856.0,86848.0,0.01171]
[1763669254573,0.03229377,86855.0,86848.0,0.01171]
[1763669254798,0.11476708,86861.0,86848.0,0.01171]
[1763669255001,0.03232305,86860.0,86848.0,0.01171]
[1763669255202,0.03232305,86859.0,86841.0,0.01171]
[1763669255371,0.03234233,86858.0,86841.0,0.00013347]
[1763669255572,0.03234233,86857.0,86841.0,0.00013347]
[1763669255777,0.323,86859.0,86841.0,0.00013347]
[1763669255778,0.03234233,86856.0,86841.0,0.00013347]
[1763669255975,0.03234233,86855.0,86841.0,0.00013347]
[1763669256295,0.03234233,86854.0,86841.0,0.00013347]
[1763669256524,0.03234233,86853.0,86841.0,0.00013347]
[1763669256749,0.03234233,86852.0,86841.0,0.00013347]
[1763669256961,0.03234233,86851.0,86841.0,0.00013347]
[1763669257174,0.03234477,86850.0,86841.0,0.00013347]
[1763669257380,0.01077679,86849.0,86841.0,0.00013347]
[1763669257582,0.01077679,86848.0,86841.0,0.00013347]
[1763669257847,0.323,86859.0,86841.0,0.00013347]
[1763669258062,0.03233085,86858.0,86841.0,0.00013347]
[1763669258263,0.03233085,86857.0,86841.0,0.00013347]
[1763669258483,0.03233085,86856.0,86841.0,0.00013347]
[1763669258676,0.323,86850.0,86841.0,0.00013347]
[1763669258877,0.03233085,86849.0,86841.0,0.00013347]
[1763669259109,0.03232887,86848.0,86841.0,0.00013347]
[1763669259380,0.03232887,86847.0,86841.0,0.00113347]
[1763669259559,0.01077695,86846.0,86841.0,0.00113347]
[1763669259758,0.323,86859.0,86841.0,0.00113347]
[1763669259958,0.03233583,86858.0,86841.0,0.00013347]
[1763669260163,0.323,86850.0,86841.0,0.00013347]
[1763669260388,0.323,86846.0,86841.0,0.00113347]
[1763669260563,0.03233583,86845.0,86841.0,0.00013347]
[1763669260772,0.323,86846.0,86841.0,0.00013347]
[1763669260773,0.03233583,86844.0,86841.0,0.00013347]
[1763669261002,0.03233583,86843.0,86841.0,0.00013347]
[1763669261290,0.03233583,86842.0,86841.0,0.00013347]
[1763669262070,0.01077861,86842.0,86841.0,0.00013347]
[1763669262282,0.323,86850.0,86841.0,0.00013347]
[1763669262594,0.03233488,86849.0,86841.0,0.00013347]
[1763669262792,0.03233488,86848.0,86841.0,0.00013347]
[1763669262985,0.03233488,86847.0,86841.0,0.00013347]
[1763669263183,0.03233488,86846.0,86841.0,0.00013347]
[1763669263426,0.03232655,86845.0,86841.0,0.00013347]
[1763669263581,0.03232655,86844.0,86841.0,0.00013347]
[1763669263782,0.03232655,86843.0,86841.0,0.00013347]
[1763669264116,0.03232655,86842.0,86841.0,0.00013347]
[1763669266734,0.050404,86842.0,86841.0,0.00013347]
[1763669268631,0.05042388,86842.0,86841.0,0.00013347]
[1763669271718,3.37342388,86842.0,86841.0,0.00013347]
[1763669272117,3.37342388,86842.0,86841.0,3.47e-06]
[1763669272290,0.323,86839.0,86799.0,0.03090171]
[1763669272493,0.323,86819.0,86800.0,0.0039661]
[1763669272693,0.01077829,86818.0,86801.0,0.02363]
[1763669272886,0.323,86819.0,86801.0,0.03065978]
[1763669273401,0.323,86819.0,86802.0,0.02363]
[1763669274172,0.323,86829.0,86818.0,0.02824]
[1763669274374,0.03233311,86828.0,86818.0,0.02824]
[1763669274522,0.323,86829.0,86818.0,0.02824]
[1763669274724,0.01077803,86828.0,86818.0,0.01171]
[1763669274934,0.323,86829.0,86818.0,0.01171]
[1763669275134,0.03233338,86828.0,86818.0,0.01171]
[1763669275339,0.323,86839.0,86818.0,0.01171]
[1763669275502,0.03233116,86838.0,86818.0,0.01171]
[1763669275702,0.03233116,86837.0,86818.0,0.01171]
[1763669275954,0.03233116,86836.0,86818.0,0.01171]
[1763669276175,0.03233116,86835.0,86818.0,0.01171]
[1763669276352,0.323,86839.0,86818.0,0.01171]
[1763669276353,0.03233116,86834.0,86818.0,0.01171]
[1763669276549,0.01807745,86842.0,86800.0,0.0039661]
[1763669276550,0.323,86829.0,86800.0,0.0039661]
[1763669276776,0.11476708,86832.0,86800.0,0.0039661]
[1763669276777,0.323,86819.0,86800.0,0.0039661]
[1763669277567,0.323,86819.0,86801.0,0.02363]
[1763669278146,0.323,86829.0,86801.0,0.02363]
[1763669278347,0.0323092,86828.0,86801.0,0.02363]
[1763669278570,0.0323092,86827.0,86801.0,0.02363]
[1763669278802,0.01076973,86826.0,86801.0,0.02363]
[1763669279003,0.323,86829.0,86801.0,0.02363]
[1763669279988,0.323,86829.0,86802.0,0.12859164]
[1763669280194,0.11476708,86832.0,86804.0,0.05210249]
[1763669280395,0.0310532,86843.0,86806.0,0.05210249]
[1763669280621,0.03231206,86842.0,86814.0,0.01171]
[1763669280834,0.11476708,86846.0,86814.0,0.01171]
[1763669281085,0.81358885,86850.0,86817.0,0.11476708]
[1763669281086,0.03230937,86845.0,86817.0,0.11476708]
[1763669281305,0.0310532,86857.0,86818.0,0.02022096]
[1763669281507,0.323,86846.0,86818.0,0.04385096]
[1763669281658,0.11476708,86847.0,86818.0,0.02363]
[1763669281659,0.323,86839.0,86818.0,0.02363]
[1763669282452,0.323,86839.0,86814.0,0.01171]
[1763669282453,0.323,86829.0,86814.0,0.01171]
[1763669282653,0.323,86829.0,86798.0,0.0118]
[1763669283039,0.323,86829.0,86801.0,0.02358]
[1763669284172,0.323,86819.0,86798.0,0.0118]
[1763669284354,0.11476708,86818.0,86798.0,0.0118]
[1763669284914,0.323,86817.0,86798.0,0.0118]
[1763669285162,0.323,86809.0,86798.0,0.0118]
[1763669285392,0.323,86809.0,86792.0,0.0118]
[1763669286150,0.323,86817.0,86795.0,0.02358]
[1763669286377,0.323,86817.0,86792.0,0.0118]
[1763669288968,0.323,86817.0,86794.0,0.02358]
[1763669289206,0.0310532,86826.0,86792.0,0.0118]
[1763669289207,0.78253565,86820.0,86792.0,0.0118]
[1763669289393,0.0310532,86835.0,86816.0,0.0122]
[1763669289623,0.78253565,86830.0,86816.0,0.0122]
[1763669289861,0.78253565,86830.0,86799.0,0.0122]
[1763669289862,0.34108036,86829.0,86799.0,0.0122]
[1763669289994,0.323,86819.0,86799.0,0.0122]
[1763669290407,0.43776708,86819.0,86799.0,0.0122]
[1763669290637,0.323,86809.0,86792.0,0.0118]
[1763669291965,0.323,86809.0,86800.0,0.0049661]
[1763669292928,0.323,86809.0,86800.0,0.0039661]
[1763669293969,0.11476708,86819.0,86800.0,0.0039661]
[1763669293970,0.323,86818.0,86800.0,0.0039661]
[1763669294374,0.323,86818.0,86801.0,0.0122]
[1763669296573,0.03226543,86817.0,86801.0,0.0122]
[1763669296745,0.323,86818.0,86801.0,0.0122]
[1763669296944,0.01075782,86817.0,86801.0,0.0122]
[1763669297122,0.323,86818.0,86801.0,0.0122]
[1763669297323,0.01075694,86817.0,86801.0,0.0122]
[1763669297652,0.323,86818.0,86801.0,0.0122]
[1763669298067,0.78253565,86830.0,86802.0,0.02358]
[1763669298296,0.43776708,86819.0,86801.0,0.0122]
[1763669298717,0.43776708,86819.0,86800.0,0.0039661]
[1763669298718,0.323,86810.0,86800.0,0.0039661]
[1763669298938,0.323,86810.0,86801.0,0.0122]
[1763669299379,0.323,86810.0,86802.0,0.02358]
[1763669299589,0.01808036,86829.0,86809.0,0.01557]
[1763669299803,0.03226561,86828.0,86809.0,0.01557]
[1763669300038,0.0107552,86827.0,86809.0,0.03915]
[1763669300242,0.01808176,86825.0,86809.0,0.03915]
[1763669300657,0.01808176,86825.0,86801.0,0.0132]
[1763669300658,0.03098267,86843.0,86824.0,0.02777]
[1763669300851,0.15602305,86847.0,86828.0,0.01557]
[1763669300852,0.11476708,86847.0,86828.0,0.01557]
[1763669301082,0.03227733,86846.0,86825.0,0.02358]
[1763669301274,0.001,86827.0,86825.0,0.02358]
[1763669301603,0.11476708,86847.0,86826.0,0.01557]
[1763669301808,0.33375756,86846.0,86824.0,0.0122]
[1763669302007,0.323,86846.0,86824.0,0.01233334]
[1763669302658,0.323,86839.0,86824.0,0.01233334]
[1763669302880,0.323,86839.0,86824.0,0.00013334]
[1763669303658,0.0180793,86836.0,86824.0,0.00013334]
[1763669303862,0.0180793,86836.0,86825.0,0.02358]
[1763669304070,0.0180793,86836.0,86824.0,0.00013334]
[1763669304273,0.323,86833.0,86824.0,0.00013334]
[1763669304546,0.323,86831.0,86824.0,0.00013334]
[1763669304696,0.323,86827.0,86824.0,0.00013334]
[1763669304895,0.323,86827.0,86800.0,0.00354866]
[1763669304896,0.323,86809.0,86800.0,0.00354866]
[1763669305099,0.78253565,86810.0,86800.0,0.0039661]
[1763669305100,0.323,86804.0,86800.0,0.0039661]
[1763669305279,0.03222165,86803.0,86800.0,0.0039661]
[1763669305485,0.323,86789.0,86770.0,0.0004]
[1763669305824,0.01073349,86788.0,86780.0,0.00051165]
[1763669306002,0.323,86789.0,86780.0,0.00051165]
[1763669306003,0.01073307,86787.0,86780.0,0.00051165]
[1763669306204,0.43776708,86781.0,86780.0,0.00051165]
[1763669306726,0.45370657,86781.0,86780.0,0.00051165]
[1763669309418,0.45470657,86781.0,86780.0,0.00051165]
[1763669309619,0.45470657,86781.0,86770.0,0.0004]
[1763669309620,0.323,86780.0,86770.0,0.0004]
[1763669309910,1.10553565,86780.0,86770.0,0.00044217]
[1763669310322,0.03210147,86779.0,86770.0,0.00044217]
[1763669310457,0.03210147,86778.0,86770.0,0.00044217]
[1763669310658,0.03210147,86777.0,86770.0,0.00044217]
[1763669310912,1.10553565,86780.0,86770.0,0.00044217]
[1763669310913,0.03210147,86776.0,86770.0,0.00044217]
[1763669311109,0.01070049,86775.0,86770.0,0.00044217]
[1763669311345,1.10553565,86780.0,86770.0,0.00044217]
[1763669311649,0.03206963,86779.0,86770.0,0.00044217]
[1763669311977,1.10653565,86780.0,86770.0,0.00044217]
[1763669312115,1.10753565,86780.0,86770.0,0.00044217]
[1763669312521,0.01069192,86779.0,86770.0,0.00044217]
[1763669312861,0.03207564,86778.0,86770.0,0.00044217]
[1763669313102,1.10653565,86780.0,86770.0,0.00044217]
[1763669313307,0.03208137,86779.0,86770.0,0.00044217]
[1763669313521,0.01069379,86778.0,86770.0,0.00044217]
[1763669313656,0.03207465,86777.0,86770.0,0.00044217]
[1763669313879,0.001,86779.0,86770.0,0.00044217]
[1763669313880,0.03207465,86776.0,86770.0,0.00044217]
[1763669314100,0.001,86778.0,86770.0,0.00044217]
[1763669314435,0.03205762,86777.0,86770.0,0.00044217]
[1763669314624,0.001,86779.0,86770.0,0.00044217]
[1763669314842,0.03204798,86778.0,86770.0,0.00044217]
[1763669315099,0.03204798,86777.0,86770.0,0.00044217]
[1763669315308,0.01068266,86776.0,86770.0,0.00044217]
[1763669315454,0.01068314,86776.0,86770.0,0.00044217]
[1763669315655,0.001,86777.0,86770.0,0.00044217]
[1763669315857,0.323,86774.0,86770.0,0.00044217]
[1763669316058,3.0,86775.0,86770.0,0.00044217]
[1763669316059,0.323,86775.0,86770.0,0.00044217]
[1763669316242,0.03204953,86774.0,86770.0,0.00044217]
[1763669316443,0.002,86777.0,86770.0,0.00044217]
[1763669316644,0.323,86774.0,86770.0,0.00044217]
[1763669317668,0.01809316,86776.0,86770.0,0.00044217]
[1763669318193,0.002,86774.0,86770.0,0.00044217]
[1763669318598,0.002,86774.0,86773.0,0.00085371]
[1763669318801,0.001,86774.0,86773.0,0.00085371]
[1763669319014,0.01167485,86774.0,86773.0,0.00085371]
[1763669319453,0.01067485,86774.0,86773.0,0.00085371]
[1763669319603,0.01167485,86774.0,86773.0,0.00085371]
[1763669319797,0.01067485,86774.0,86773.0,0.00085371]
[1763669320276,0.323,86774.0,86773.0,0.00085371]
[1763669320417,0.01167074,86774.0,86773.0,0.00085371]
[1763669320620,0.01167074,86774.0,86770.0,0.00044217]
[1763669320621,3.0,86773.0,86750.0,0.0004]
[1763669320822,0.43776708,86751.0,86750.0,0.00052509]
[1763669323026,0.46795899,86770.0,86750.0,0.01609509]
[1763669323434,0.2436,86773.0,86751.0,0.02384]
[1763669323639,0.323,86769.0,86750.0,0.01609509]
[1763669324269,0.323,86759.0,86750.0,0.00052509]
[1763669324586,0.46795899,86770.0,86758.0,0.01604444]
[1763669324786,0.02616932,86772.0,86758.0,0.01557]
[1763669325004,0.323,86769.0,86750.0,0.00052509]
[1763669326450,0.323,86759.0,86750.0,0.00052509]
[1763669327663,0.46795899,86760.0,86750.0,0.00052509]
[1763669328558,0.11476708,86767.0,86750.0,0.00052509]
[1763669329510,0.46795899,86760.0,86750.0,0.00052509]
[1763669330313,0.01809341,86758.0,86750.0,0.00052509]
[1763669330665,0.01809341,86758.0,86757.0,0.00050607]
[1763669330893,0.01809341,86758.0,86757.0,0.01607607]
[1763669332678,0.323,86766.0,86757.0,0.01607607]
[1763669332888,0.323,86766.0,86750.0,0.00052509]
[1763669333287,0.46795899,86760.0,86750.0,0.00052509]
[1763669333942,0.323,86766.0,86759.0,0.02694]
[1763669334137,0.323,86766.0,86759.0,0.01137]
[1763669334138,0.01071852,86765.0,86759.0,0.01137]
[1763669334361,0.03223662,86764.0,86759.0,0.01137]
[1763669334568,0.03223662,86763.0,86759.0,0.01137]
[1763669334770,0.03223662,86762.0,86759.0,0.01137]
[1763669334948,0.03223662,86761.0,86759.0,0.01137]
[1763669335147,0.03223662,86760.0,86759.0,0.01137]
[1763669335347,0.03223662,86760.0,86750.0,0.00052509]
[1763669335572,0.03223662,86759.0,86751.0,0.03521]
[1763669335812,0.03086098,86774.0,86753.0,0.11476708]
[1763669335813,0.30523662,86766.0,86753.0,0.11476708]
[1763669336015,0.01023,86798.0,86753.0,0.11476708]
[1763669336016,0.03096893,86788.0,86774.0,0.05210249]
[1763669336221,0.03096893,86788.0,86773.0,0.01557]
[1763669336222,0.01132,86813.0,86787.0,0.02172]
[1763669336581,0.49234899,86810.0,86787.0,0.02172]
[1763669336802,0.46795899,86800.0,86787.0,0.00615]
[1763669337437,0.01132,86813.0,86788.0,0.02367]
[1763669337603,0.01232,86813.0,86788.0,0.02367]
[1763669337838,0.01132,86813.0,86788.0,0.02367]
[1763669338630,0.01132,86813.0,86787.0,0.00627509]
[1763669338631,0.323,86809.0,86787.0,0.00627509]
[1763669338834,0.323,86805.0,86787.0,0.00627509]
[1763669340457,0.03635,86804.0,86787.0,0.00012509]
[1763669340664,0.323,86802.0,86787.0,0.00012509]
[1763669340878,0.11476708,86803.0,86787.0,0.00012509]
[1763669340879,0.48604546,86800.0,86787.0,0.00012509]
[1763669341114,0.48577958,86800.0,86787.0,0.00012509]
[1763669341320,0.02439,86799.0,86787.0,0.00012509]
[1763669342275,0.48604546,86800.0,86787.0,0.00012509]
[1763669342696,0.01808647,86800.0,86787.0,0.00012509]
[1763669343385,0.01808647,86800.0,86787.0,0.02379509]
[1763669344059,0.01808647,86800.0,86787.0,0.00012509]
[1763669346983,0.02307,86802.0,86787.0,0.00012509]
[1763669347123,0.11476708,86803.0,86787.0,0.00012509]
[1763669347326,0.46795899,86800.0,86787.0,0.00012509]
[1763669347731,0.02307,86799.0,86787.0,0.00012509]
[1763669348796,0.323,86802.0,86787.0,0.00012509]
[1763669349554,0.001,86799.0,86787.0,0.00012509]
[1763669349749,0.001,86799.0,86787.0,0.02379509]
[1763669350156,0.001,86802.0,86787.0,0.02379509]
[1763669350596,0.002,86802.0,86787.0,0.02379509]
[1763669350807,0.46795899,86800.0,86787.0,0.00012509]
[1763669351007,0.323,86799.0,86787.0,0.00012509]
[1763669351348,0.01808701,86797.0,86787.0,0.00012509]
[1763669352266,0.04115701,86797.0,86787.0,0.00012509]
[1763669352664,0.02307,86796.0,86787.0,0.00012509]
[1763669353298,0.01626,86788.0,86787.0,0.00012509]
[1763669353495,0.03933,86788.0,86787.0,0.00012509]
[1763669355094,0.17626169,86799.0,86787.0,0.00012509]
[1763669355327,0.01626,86788.0,86787.0,0.00012509]
[1763669355730,0.17626169,86799.0,86787.0,0.01188509]
[1763669356146,0.46795899,86800.0,86787.0,0.01188509]
[1763669356403,0.001,86788.0,86787.0,0.01188509]
[1763669356604,0.01535669,86816.0,86787.0,0.01188509]
[1763669356605,0.46795899,86810.0,86787.0,0.01188509]
[1763669357013,0.001,86799.0,86788.0,0.02376]
[1763669357152,0.323,86809.0,86788.0,0.02376]
[1763669357346,0.323,86805.0,86788.0,0.02376]
[1763669357545,0.323,86805.0,86787.0,0.01188509]
[1763669357750,0.11476708,86806.0,86787.0,0.01188509]
[1763669358148,0.46795899,86800.0,86787.0,0.01188509]
[1763669358650,0.34607,86805.0,86787.0,0.01188509]
[1763669358886,0.323,86805.0,86787.0,0.01188509]
[1763669359253,0.001,86799.0,86787.0,0.01188509]
[1763669359451,0.323,86805.0,86787.0,0.02571204]
[1763669359655,0.324,86805.0,86787.0,0.02571204]
[1763669359850,0.324,86805.0,86788.0,0.02376]
[1763669360058,0.323,86805.0,86788.0,0.02376]
[1763669360279,0.001,86799.0,86788.0,0.02376]
[1763669360479,0.323,86819.0,86789.0,0.02483411]
[1763669360683,0.323,86819.0,86798.0,0.01502]
[1763669360845,0.323,86819.0,86790.0,0.00743061]
[1763669360846,0.001,86805.0,86790.0,0.00743061]
[1763669361053,0.001,86805.0,86788.0,0.02376]
[1763669361901,0.001,86805.0,86789.0,0.02484088]
[1763669362080,0.02307,86812.0,86790.0,0.02484088]
[1763669362282,0.02307,86812.0,86791.0,0.02484088]
[1763669362484,0.02307,86812.0,86792.0,0.02484088]
[1763669362688,0.02307,86812.0,86793.0,0.02484088]
[1763669362888,0.323,86809.0,86794.0,0.02484088]
[1763669363095,0.02307,86812.0,86788.0,0.02376]
[1763669363286,0.323,86809.0,86789.0,0.03151731]
[1763669363485,0.323,86799.0,86787.0,0.00012509]
[1763669365512,0.02307,86798.0,86788.0,0.02490714]
[1763669365726,0.02307,86798.0,86787.0,0.00012509]
[1763669366336,0.01626,86788.0,86787.0,0.00012509]
[1763669367239,0.323,86799.0,86787.0,0.00012509]
[1763669368654,0.01626,86788.0,86787.0,0.00012509]
[1763669369009,0.03933,86788.0,86787.0,0.00012509]
[1763669370326,0.06088307,86788.0,86787.0,0.00012509]
[1763669370847,0.07774813,86788.0,86787.0,0.00012509]
[1763669370997,0.07165982,86788.0,86787.0,0.00012509]
[1763669371610,0.07265982,86788.0,86787.0,0.00012509]
[1763669371810,0.04958982,86788.0,86787.0,0.00012509]
[1763669372011,0.03964289,86788.0,86787.0,0.00012509]
[1763669372212,0.04064289,86788.0,86787.0,0.00012509]
[1763669372435,0.04164289,86788.0,86787.0,0.00012509]
[1763669372639,0.05741289,86788.0,86787.0,0.00012509]
[1763669372838,0.05741289,86788.0,86787.0,0.04096509]
[1763669372839,0.02008982,86788.0,86787.0,0.04096509]
[1763669373175,0.02008982,86788.0,86787.0,0.09306758]
[1763669373176,0.01808982,86788.0,86787.0,0.09306758]
[1763669373329,0.01132,86813.0,86788.0,0.05210249]
[1763669373526,0.02155516,86812.0,86789.0,0.11476708]
[1763669373733,0.02155516,86811.0,86789.0,0.03866663]
[1763669373910,0.01132,86813.0,86790.0,0.02484]
[1763669374101,0.0215595,86812.0,86790.0,0.02484]
[1763669374304,0.46795899,86810.0,86790.0,0.02484]
[1763669374499,0.01132,86813.0,86790.0,0.02484]
[1763669374732,0.46795899,86810.0,86790.0,0.02484]
[1763669374923,0.323,86809.0,86790.0,0.02484]
[1763669375124,0.323,86809.0,86787.0,0.01181509]
[1763669375331,0.323,86799.0,86787.0,0.01181509]
[1763669375721,0.02398,86798.0,86787.0,0.00012509]
[1763669376436,0.01808789,86796.0,86787.0,0.00012509]
[1763669377178,0.01808789,86796.0,86787.0,0.01181509]
[1763669377384,0.01808789,86796.0,86787.0,0.00012509]
[1763669378653,0.01577,86788.0,86787.0,0.00012509]
[1763669379906,0.04075,86788.0,86787.0,0.00012509]
[1763669381032,0.01677,86788.0,86787.0,0.00012509]
[1763669381238,0.01777,86788.0,86787.0,0.00012509]
[1763669382242,0.002,86788.0,86787.0,0.00012509]
[1763669382645,0.002,86788.0,86787.0,0.04096509]
[1763669382842,0.002,86788.0,86787.0,0.01612509]
[1763669383791,0.001,86788.0,86787.0,0.01612509]
[1763669384134,0.01808789,86796.0,86787.0,0.01612509]
[1763669384331,0.01808789,86796.0,86787.0,0.00012509]
[1763669384332,0.01577,86788.0,86787.0,0.00012509]
[1763669384754,0.03975,86788.0,86787.0,0.00012509]
[1763669384958,0.06130482,86788.0,86787.0,0.00012509]
[1763669385539,0.07308205,86788.0,86787.0,0.00012509]
[1763669385958,0.39708205,86788.0,86787.0,0.00012509]
[1763669386813,0.39608205,86788.0,86787.0,0.00012509]
[1763669387282,0.39708205,86788.0,86787.0,0.00012509]
[1763669387486,0.39808205,86788.0,86787.0,0.00012509]
[1763669388251,0.34755482,86788.0,86787.0,0.00012509]
[1763669388458,0.326,86788.0,86787.0,0.00012509]
[1763669388892,0.36475,86788.0,86787.0,0.00012509]
[1763669389100,0.38628912,86788.0,86787.0,0.00012509]
[1763669389904,0.41314858,86788.0,86787.0,0.00012509]
[1763669390104,3.41414858,86788.0,86787.0,0.00012509]
[1763669390320,3.41514858,86788.0,86787.0,0.00012509]
[1763669391140,0.41514858,86788.0,86787.0,0.00012509]
[1763669399154,0.41515255,86788.0,86787.0,0.00012509]
[1763669400171,0.39706193,86788.0,86787.0,0.00012509]
[1763669400667,0.39706101,86788.0,86787.0,0.00012509]
[1763669400969,3.39706101,86788.0,86787.0,0.00012509]
[1763669401171,0.323,86772.0,86765.0,0.00025301]
[1763669401571,0.323,86772.0,86765.0,0.00037815]
[1763669401572,0.02282,86766.0,86765.0,0.00037815]
[1763669402118,0.0468,86766.0,86765.0,0.00037815]
[1763669402340,0.0465,86766.0,86765.0,0.00037815]
[1763669403112,0.02282,86766.0,86765.0,0.00037815]
[1763669403306,0.02482,86766.0,86765.0,0.00037815]
[1763669403553,0.06659341,86766.0,86765.0,0.00037815]
[1763669404665,0.08811529,86766.0,86765.0,0.00037815]
[1763669404865,0.06659341,86766.0,86765.0,0.00037815]
[1763669405227,0.08812338,86766.0,86765.0,0.00037815]
[1763669405471,0.06659341,86766.0,86765.0,0.00037815]
[1763669405850,0.04375341,86766.0,86765.0,0.00037815]
[1763669406270,0.06743341,86766.0,86765.0,0.00037815]
[1763669406591,0.06643341,86766.0,86765.0,0.00037815]
[1763669406794,0.06543341,86766.0,86765.0,0.00037815]
[1763669406975,0.06743341,86766.0,86765.0,0.00037815]
[1763669407377,0.06743341,86766.0,86740.0,0.0004]
[1763669407378,0.04375341,86766.0,86750.0,0.0003569]
[1763669407580,0.01132,86751.0,86750.0,0.00048218]
[1763669407811,0.323,86757.0,86750.0,0.00048218]
[1763669408173,0.33432,86757.0,86750.0,0.00048218]
[1763669408562,0.01132,86757.0,86750.0,0.00048218]
[1763669408997,0.01661,86751.0,86750.0,0.00048218]
[1763669409200,0.01132,86757.0,86750.0,0.00048218]
[1763669411229,0.01661,86751.0,86750.0,0.00048218]
[1763669411439,0.01132,86757.0,86750.0,0.00048218]
[1763669413146,0.01661,86751.0,86750.0,0.00095671]
[1763669413550,0.04029,86751.0,86750.0,0.00095671]
[1763669414366,0.07639772,86751.0,86750.0,0.00095671]
[1763669414763,0.07739772,86751.0,86750.0,0.00095671]
[1763669415357,0.08726949,86751.0,86750.0,0.00095671]
[1763669415562,0.07839772,86751.0,86750.0,0.00095671]
[1763669415759,0.07739772,86751.0,86750.0,0.00095671]
[1763669415959,0.08815759,86751.0,86750.0,0.00095671]
[1763669416160,0.08915525,86751.0,86750.0,0.00095671]
[1763669416743,0.10725112,86751.0,86750.0,0.00095671]
[1763669418212,0.1072406,86751.0,86750.0,0.00095671]
[1763669418355,0.07281359,86751.0,86750.0,0.00095671]
[1763669418557,0.09649359,86751.0,86750.0,0.00095671]
[1763669418755,0.09549359,86751.0,86750.0,0.00095671]
[1763669418960,0.09449359,86751.0,86750.0,0.00095671]
[1763669419193,0.09649359,86751.0,86750.0,0.00095671]
[1763669419385,0.07281359,86751.0,86750.0,0.00095671]
[1763669419585,0.05823574,86751.0,86750.0,0.00095671]
[1763669419763,0.02009587,86751.0,86750.0,0.00095671]
[1763669420964,0.05938587,86751.0,86750.0,0.00095671]
[1763669421177,0.01909587,86751.0,86750.0,0.02854671]
[1763669421377,0.02009587,86751.0,86750.0,0.01311671]
[1763669421578,0.02009587,86751.0,86750.0,0.00095671]
[1763669421800,0.01809587,86751.0,86750.0,0.00095671]
[1763669422240,0.03470587,86751.0,86750.0,0.00095671]
[1763669422781,0.06535646,86751.0,86750.0,0.00095671]
[1763669422993,0.34109587,86751.0,86750.0,0.00095671]
[1763669423197,3.38138587,86751.0,86750.0,0.00095671]
[1763669423404,3.35770587,86751.0,86750.0,0.00095671]
[1763669424519,3.38138587,86751.0,86750.0,0.00095671]
[1763669424720,3.40289393,86751.0,86750.0,0.00095671]
[1763669424965,3.38138587,86751.0,86750.0,0.00095671]
[1763669425170,0.38138587,86751.0,86750.0,0.00095671]
[1763669425432,3.4136529,86751.0,86750.0,0.00095671]
[1763669425750,3.4156529,86751.0,86750.0,0.00095671]